lending/lending_fUSD_20251124
["ID","MTS","AMOUNT","RATE_DAILY","PERIOD"]
[394796131,1763959837709,-414.67783564,0.00037552,15]
[394796132,1763959837717,-500.0,0.00037552,15]
[394796133,1763959837727,-500.0,0.00037552,15]
[394796134,1763959837735,-500.0,0.00037552,15]
[394796135,1763959837747,-500.0,0.00037552,15]
[394796136,1763959837756,-500.0,0.00037552,15]
[394796137,1763959837765,-500.0,0.00037552,15]
[394796138,1763959837775,-500.0,0.00037552,15]
[394796139,1763959837784,-500.0,0.00037552,15]
[394796140,1763959837793,-603.465227,0.00037552,15]
[394796141,1763959837802,-500.0,0.00037552,15]
[394796142,1763959837811,-133.01797757,0.00037552,15]
[394796143,1763959837827,-366.98202243,0.00037552,15]
[394796144,1763959837836,-334.76975094,0.00037552,15]
[394796145,1763959837846,-500.0,0.00037552,15]
[394796146,1763959837867,-361.86567991,0.00037552,15]
[394796147,1763959837880,-138.13432009,0.00037552,15]
[394796148,1763959837889,-500.0,0.00037552,15]
[394796149,1763959837899,-58.60567991,0.00037552,15]
[394796305,1763959839700,-441.39432009,0.00037552,15]
[394796306,1763959839710,-500.0,0.00037552,15]
[394796307,1763959839719,-500.0,0.00037552,15]
[394796308,1763959839729,-249.26569991,0.00037552,15]
[394796309,1763959839740,-250.73430009,0.00037552,15]
[394796310,1763959839749,-500.0,0.00037552,15]
[394796311,1763959839758,-167.35126591,0.00037552,15]
[394796312,1763959839769,-332.64873409,0.00037552,15]
[394796313,1763959839778,-500.0,0.00037552,15]
[394796314,1763959839788,-500.0,0.00037552,15]
[394796315,1763959839797,-500.0,0.00037552,15]
[394796316,1763959839806,-500.0,0.00037552,15]
[394796317,1763959839815,-499.99999999,0.00037552,15]
[394796318,1763959839824,-500.0,0.00037552,15]
[394796319,1763959839834,-500.0,0.00037552,15]
[394796320,1763959839843,-500.0,0.00037552,15]
[394796321,1763959839852,-500.0,0.00037552,15]
[394796322,1763959839861,-500.0,0.00037552,15]
[394796323,1763959839870,-500.0,0.00037552,15]
[394796324,1763959839879,-760000.0,0.00037553,2]
[394796325,1763959839888,-11950.0841,0.00037553,2]
[394796326,1763959839897,-256.8848379,0.00037553,2]
[394796327,1763959839906,-190.74008615,0.00037573,5]
[394796328,1763959839915,-500.0,0.00037573,5]
[394796329,1763959839924,-500.0,0.00037573,5]
[394796330,1763959839934,-331.58146339,0.00037573,5]
[394796331,1763959839943,-500.0,0.00037573,5]
[394796332,1763959839952,-550.91,0.00037589,2]
[394796333,1763959839961,-1110.06259008,0.00037652,2]
[394796334,1763959839970,-4162.7063,0.00037653,30]
[394796335,1763959839979,-2500.0,0.00037653,2]
[394796336,1763959839988,-203.15070884,0.00037673,2]
[394796337,1763959839997,-999.48322554,0.00037752,5]
[394796338,1763959840006,-500.0,0.00037752,8]
[394796339,1763959840017,-500.0,0.00037752,8]
[394796340,1763959840030,-500.0,0.00037752,8]
[394796341,1763959840040,-500.0,0.00037752,8]
[394796342,1763959840049,-500.0,0.00037752,8]
[394796343,1763959840059,-600.0,0.00037753,30]
[394796344,1763959840070,-500.0,0.00037773,5]
[394796345,1763959840079,-500.0,0.0003778,120]
[394796346,1763959840089,-352.03560128,0.00037836,15]
[394796347,1763959840098,-1000.0,0.00037853,2]
[394796348,1763959840107,-25049.62071,0.0003799,2]
[394796349,1763959840117,-168.0,0.00038007,2]
[394796350,1763959840126,-1110.06259,0.00038013,2]
[394796351,1763959840135,-600.0,0.00038027,30]
[394796353,1763959840144,-200.0,0.00038049,10]
[394796355,1763959840153,-500.0,0.00038054,120]
[394796357,1763959840162,-168.0,0.00038096,7]
[394796359,1763959840171,-502.16141848,0.00038121,5]
[394796361,1763959840180,-203.15070878,0.00038134,2]
[394796363,1763959840189,-10000.0,0.00038156,2]
[394796365,1763959840198,-506.11,0.0003818,2]
[394796367,1763959840208,-352.03560128,0.00038219,15]
[394796369,1763959840219,-155.76565566,0.00038256,2]
[394796371,1763959840230,-600.0,0.00038301,30]
[394796373,1763959840239,-173.847373,0.00038327,15]
[394796375,1763959840248,-150.0,0.00038327,15]
[394796376,1763959840258,-500.0,0.00038328,120]
[394796378,1763959840267,-1247.0,0.00038345,7]
[394796379,1763959840280,-1247.0,0.00038345,7]
[394796380,1763959840291,-1247.0,0.00038345,7]
[394796381,1763959840300,-1247.0,0.00038345,7]
[394796382,1763959840310,-1247.0,0.00038345,7]
[394796383,1763959840319,-1247.0,0.00038345,7]
[394796384,1763959840329,-4419.0,0.00038355,5]
[394796385,1763959840342,-151.0,0.00038355,31]
[394796386,1763959840359,-151.0,0.00038355,31]
[394796387,1763959840369,-195.578902,0.00038355,31]
[394796388,1763959840378,-151.0,0.00038355,31]
[394796389,1763959840388,-195.578902,0.00038355,31]
[394796390,1763959840399,-195.578902,0.00038355,31]
[394796391,1763959840412,-195.578902,0.00038355,31]
[394796392,1763959840422,-151.0,0.00038355,31]
[394796393,1763959840433,-520.0,0.00038355,30]
[394796394,1763959840443,-414.0,0.00038355,30]
[394796395,1763959840453,-1362.33758212,0.00038355,30]
[394796396,1763959840463,-539.24,0.00038355,30]
[394796397,1763959840472,-429.318,0.00038355,30]
[394796398,1763959840481,-559.19188,0.00038355,30]
[394796399,1763959840491,-445.202766,0.00038355,30]
[394796400,1763959840500,-579.88197956,0.00038355,30]
[394796401,1763959840510,-461.67526834,0.00038355,30]
[394796402,1763959840520,-300.0,0.00038355,30]
[394796403,1763959840530,-152.33888936,0.00038355,30]
[394796404,1763959840540,-696.0430275,0.00038355,30]
[394796405,1763959840549,-478.75725327,0.00038355,30]
[394796406,1763959840558,-434.07199322,0.00038355,30]
[394796407,1763959840567,-151.0,0.00038355,31]
[394796408,1763959840576,-500.0,0.00038355,30]
[394796409,1763959840586,-496.47127164,0.00038355,30]
[394796410,1763959840595,-500.0,0.00038355,30]
[394796411,1763959840604,-514.84070869,0.00038355,30]
[394796412,1763959840614,-500.0,0.00038355,30]
[394796413,1763959840624,-533.88981491,0.00038355,30]
[394796414,1763959840635,-620.0,0.00038355,30]
[394796415,1763959840644,-500.0,0.00038355,30]
[394796416,1763959840653,-250.0,0.00038355,30]
[394796417,1763959840663,-500.0,0.00038355,30]
[394796418,1763959840672,-620.0,0.00038355,30]
[394796419,1763959840682,-500.0,0.00038355,30]
[394796420,1763959840692,-250.0,0.00038355,30]
[394796421,1763959840701,-500.0,0.00038355,30]
[394796422,1763959840711,-500.0,0.00038355,30]
[394796423,1763959840720,-500.0,0.00038355,30]
[394796424,1763959840730,-500.0,0.00038355,30]
[394796425,1763959840740,-500.0,0.00038355,30]
[394796426,1763959840750,-500.0,0.00038355,30]
[394796427,1763959840760,-250.0,0.00038355,30]
[394796428,1763959840769,-500.0,0.00038355,30]
[394796429,1763959840779,-500.0,0.00038355,30]
[394796430,1763959840788,-500.0,0.00038355,30]
[394796431,1763959840799,-250.0,0.00038355,30]
[394796432,1763959840809,-250.0,0.00038355,30]
[394796433,1763959840818,-500.0,0.00038355,30]
[394796434,1763959840828,-500.0,0.00038355,30]
[394796435,1763959840838,-500.0,0.00038355,30]
[394796436,1763959840848,-285.53961118,0.00038355,30]
[394796437,1763959840861,-250.0,0.00038355,30]
[394796438,1763959840871,-500.0,0.00038355,30]
[394796439,1763959840880,-500.0,0.00038355,30]
[394796440,1763959840890,-500.0,0.00038355,30]
[394796441,1763959840899,-250.0,0.00038355,30]
[394796442,1763959840908,-500.0,0.00038355,30]
[394796443,1763959840918,-250.0,0.00038355,30]
[394796444,1763959840927,-500.0,0.00038355,30]
[394796445,1763959840937,-266.33499402,0.00038355,30]
[394796446,1763959840946,-500.0,0.00038355,30]
[394796447,1763959840955,-500.0,0.00038355,30]
[394796448,1763959840965,-250.0,0.00038355,30]
[394796449,1763959840974,-500.0,0.00038355,30]
[394796450,1763959840983,-500.0,0.00038355,30]
[394796451,1763959840993,-500.0,0.00038355,30]
[394796452,1763959841002,-500.0,0.00038355,30]
[394796453,1763959841011,-250.0,0.00038355,30]
[394796454,1763959841020,-500.0,0.00038355,30]
[394796455,1763959841030,-500.0,0.00038355,30]
[394796456,1763959841039,-250.0,0.00038355,30]
[394796457,1763959841048,-500.0,0.00038355,30]
[394796458,1763959841062,-250.0,0.00038355,30]
[394796459,1763959841071,-500.0,0.00038355,30]
[394796460,1763959841080,-500.0,0.00038355,30]
[394796461,1763959841090,-500.0,0.00038355,30]
[394796462,1763959841101,-250.0,0.00038355,30]
[394796463,1763959841112,-250.0,0.00038355,30]
[394796464,1763959841122,-500.0,0.00038355,30]
[394796465,1763959841132,-500.0,0.00038355,30]
[394796466,1763959841141,-500.0,0.00038355,30]
[394796467,1763959841151,-250.0,0.00038355,30]
[394796468,1763959841160,-250.0,0.00038355,30]
[394796469,1763959841169,-247.89835245,0.00038355,30]
[394796470,1763959841179,-500.0,0.00038355,30]
[394796471,1763959841188,-500.0,0.00038355,30]
[394796472,1763959841197,-500.0,0.00038355,30]
[394796473,1763959841207,-265.33285947,0.00038355,30]
[394796474,1763959841218,-250.0,0.00038355,30]
[394796475,1763959841230,-500.0,0.00038355,30]
[394796476,1763959841241,-500.0,0.00038355,30]
[394796477,1763959841254,-500.0,0.00038355,30]
[394796478,1763959841265,-250.0,0.00038355,30]
[394796479,1763959841275,-500.0,0.00038355,30]
[394796480,1763959841284,-500.0,0.00038355,30]
[394796481,1763959841294,-500.0,0.00038355,30]
[394796482,1763959841304,-264.02701306,0.00038355,30]
[394796483,1763959841313,-500.0,0.00038355,30]
[394796484,1763959841322,-500.0,0.00038355,30]
[394796485,1763959841332,-500.0,0.00038355,30]
[394796486,1763959841341,-500.0,0.00038355,30]
[394796487,1763959841351,-500.0,0.00038355,30]
[394796488,1763959841361,-500.0,0.00038355,30]
[394796489,1763959841370,-500.0,0.00038355,30]
[394796490,1763959841379,-500.0,0.00038355,30]
[394796491,1763959841389,-500.0,0.00038355,30]
[394796492,1763959841400,-500.0,0.00038355,30]
[394796493,1763959841409,-500.0,0.00038355,30]
[394796494,1763959841419,-500.0,0.00038355,30]
[394796495,1763959841428,-500.0,0.00038355,30]
[394796496,1763959841437,-500.0,0.00038355,30]
[394796497,1763959841446,-500.0,0.00038355,30]
[394796498,1763959841460,-500.0,0.00038355,30]
[394796499,1763959841470,-500.0,0.00038355,30]
[394796500,1763959841479,-500.0,0.00038355,30]
[394796501,1763959841488,-656.41848616,0.00038355,30]
[394796502,1763959841498,-500.0,0.00038355,30]
[394796503,1763959841507,-500.0,0.00038355,30]
[394796504,1763959841517,-500.0,0.00038355,30]
[394796505,1763959841527,-500.0,0.00038355,30]
[394796506,1763959841537,-500.0,0.00038355,30]
[394796507,1763959841546,-500.0,0.00038355,30]
[394796508,1763959841556,-500.0,0.00038355,30]
[394796509,1763959841566,-500.0,0.00038355,30]
[394796510,1763959841576,-500.0,0.00038355,30]
[394796511,1763959841586,-500.0,0.00038355,30]
[394796512,1763959841595,-500.0,0.00038355,30]
[394796513,1763959841606,-500.0,0.00038355,30]
[394796514,1763959841615,-500.0,0.00038355,30]
[394796515,1763959841624,-500.0,0.00038355,30]
[394796516,1763959841634,-327.307542,0.00038355,31]
[394796517,1763959841645,-500.0,0.00038355,30]
[394796518,1763959841655,-500.0,0.00038355,30]
[394796519,1763959841666,-151.0,0.00038355,30]
[394796520,1763959841675,-500.0,0.00038355,30]
[394796521,1763959841684,-500.0,0.00038355,30]
[394796522,1763959841693,-327.307542,0.00038355,31]
[394796523,1763959841703,-500.0,0.00038355,30]
[394796524,1763959841714,-500.0,0.00038355,30]
[394796525,1763959841723,-500.0,0.00038355,30]
[394796526,1763959841733,-500.0,0.00038355,30]
[394796527,1763959841742,-165.048814,0.00038355,31]
[394796528,1763959841751,-500.0,0.00038355,30]
[394796529,1763959841761,-500.0,0.00038355,30]
[394796530,1763959841770,-327.307542,0.00038355,31]
[394796531,1763959841779,-500.0,0.00038355,30]
[394796532,1763959841789,-500.0,0.00038355,30]
[394796533,1763959841798,-500.0,0.00038355,30]
[394796534,1763959841808,-327.307542,0.00038355,31]
[394796535,1763959841817,-500.0,0.00038355,30]
[394796536,1763959841827,-500.0,0.00038355,30]
[394796537,1763959841837,-500.0,0.00038355,30]
[394796538,1763959841846,-500.0,0.00038355,30]
[394796539,1763959841855,-500.0,0.00038355,30]
[394796540,1763959841864,-500.0,0.00038355,30]
[394796541,1763959841873,-500.0,0.00038355,30]
[394796542,1763959841883,-151.0,0.00038355,31]
[394796543,1763959841893,-151.0,0.00038355,31]
[394796544,1763959841903,-151.0,0.00038355,31]
[394796545,1763959841912,-300.088969,0.00038355,31]
[394796546,1763959841922,-151.0,0.00038355,31]
[394796547,1763959841932,-151.0,0.00038355,31]
[394796548,1763959841942,-151.0,0.00038355,31]
[394796549,1763959841951,-151.0,0.00038355,31]
[394796550,1763959841960,-151.0,0.00038355,31]
[394796551,1763959841970,-339.447689,0.00038355,31]
[394796552,1763959841979,-339.447689,0.00038355,31]
[394796553,1763959841987,-339.447689,0.00038355,31]
[394796554,1763959841996,-339.447689,0.00038355,31]
[394796555,1763959842006,-1000.0,0.00038355,2]
[394796556,1763959842016,-1000.0,0.00038355,3]
[394796557,1763959842034,-1000.0,0.00038355,3]
[394796558,1763959842045,-1000.0,0.00038355,3]
[394796559,1763959842056,-1000.0,0.00038355,3]
[394796560,1763959842067,-151.0,0.00038355,31]
[394796561,1763959842076,-151.0,0.00038355,31]
[394796562,1763959842086,-151.0,0.00038355,31]
[394796563,1763959842096,-151.0,0.00038355,31]
[394796564,1763959842105,-157.865048,0.00038355,31]
[394796565,1763959842114,-151.0,0.00038355,30]
[394796566,1763959842123,-151.0,0.00038355,30]
[394796567,1763959842133,-281.085269,0.00038355,30]
[394796568,1763959842142,-151.0,0.00038355,31]
[394796569,1763959842151,-1081.37,0.00038355,14]
[394796570,1763959842162,-151.0,0.00038355,31]
[394796571,1763959842172,-151.0,0.00038355,31]
[394796572,1763959842183,-151.0,0.00038355,31]
[394796573,1763959842192,-151.0,0.00038355,31]
[394796574,1763959842203,-151.0,0.00038355,31]
[394796575,1763959842212,-151.0,0.00038355,31]
[394796576,1763959842228,-151.0,0.00038355,31]
[394796577,1763959842237,-151.0,0.00038355,31]
[394796578,1763959842247,-151.0,0.00038355,31]
[394796579,1763959842257,-161.940808,0.00038355,31]
[394796580,1763959842266,-151.0,0.00038355,31]
[394796581,1763959842278,-153.648457,0.00038355,31]
[394796582,1763959842288,-151.0,0.00038355,31]
[394796583,1763959842302,-151.0,0.00038355,31]
[394796584,1763959842311,-151.0,0.00038355,31]
[394796585,1763959842322,-151.0,0.00038355,31]
[394796586,1763959842331,-151.0,0.00038355,31]
[394796587,1763959842341,-151.0,0.00038355,31]
[394796588,1763959842350,-151.0,0.00038355,31]
[394796589,1763959842360,-151.0,0.00038355,31]
[394796590,1763959842370,-151.0,0.00038355,31]
[394796591,1763959842379,-151.0,0.00038355,31]
[394796592,1763959842388,-151.0,0.00038355,31]
[394796593,1763959842398,-225.933366,0.00038355,31]
[394796594,1763959842411,-151.0,0.00038355,31]
[394796595,1763959842420,-500.0,0.00038356,8]
[394796597,1763959842430,-502.31913605,0.00038356,8]
[394796599,1763959842440,-500.0,0.00038356,8]
[394796601,1763959842449,-503.02297782,0.00038356,8]
[394796603,1763959842458,-500.0,0.00038356,8]
[394796605,1763959842468,-624.9708388,0.00038356,2]
[394796607,1763959842477,-500.0,0.00038356,8]
[394796608,1763959842487,-500.0,0.00038356,8]
[394796610,1763959842496,-200.0,0.00038356,2]
[394796612,1763959842506,-621.20164704,0.00038356,8]
[394796613,1763959842516,-500.0,0.00038356,8]
[394796614,1763959842526,-500.0,0.00038356,8]
[394796615,1763959842536,-536.596549,0.00038356,8]
[394796616,1763959842546,-500.0,0.00038356,8]
[394796617,1763959842558,-500.0,0.00038356,8]
[394796618,1763959842567,-541.95400307,0.00038356,8]
[394796619,1763959842577,-500.0,0.00038356,8]
[394796620,1763959842587,-500.0,0.00038356,8]
[394796621,1763959842596,-500.0,0.00038356,8]
[394796622,1763959842606,-500.00127748,0.00038356,8]
[394796623,1763959842615,-500.0,0.00038356,8]
[394796624,1763959842625,-500.0,0.00038356,8]
[394796625,1763959842635,-507.33994248,0.00038356,8]
[394796626,1763959842645,-500.0,0.00038356,8]
[394796627,1763959842655,-510.29605095,0.00038356,8]
[394796628,1763959842665,-500.0,0.00038356,8]
[394796629,1763959842675,-500.0,0.00038356,8]
[394796630,1763959842685,-500.0,0.00038356,8]
[394796631,1763959842694,-505.23640007,0.00038356,8]
[394796632,1763959842704,-151.0,0.00038356,2]
[394796633,1763959842714,-186.57498517,0.00038356,2]
[394796634,1763959842724,-500.0,0.00038356,8]
[394796635,1763959842734,-500.0,0.00038356,90]
[394796636,1763959842744,-500.0,0.00038356,8]
[394796637,1763959842754,-151.0,0.00038356,31]
[394796638,1763959842763,-151.0,0.00038356,31]
[394796639,1763959842773,-160.880663,0.00038356,31]
[394796640,1763959842786,-209.127849,0.00038356,31]
[394796641,1763959842796,-504.32017997,0.00038356,8]
[394796642,1763959842805,-500.0,0.00038356,8]
[394796643,1763959842815,-213.0731005,0.00038356,8]
[394796644,1763959842826,-502.25601165,0.00038356,8]
[394796645,1763959842835,-500.0,0.00038356,8]
[394796646,1763959842846,-500.0,0.00038356,8]
[394796647,1763959842856,-502.77505296,0.00038356,8]
[394796648,1763959842865,-500.0,0.00038356,8]
[394796649,1763959842875,-151.0,0.00038356,31]
[394796650,1763959842885,-514.63095914,0.00038356,8]
[394796651,1763959842894,-151.0,0.00038356,31]
[394796652,1763959842904,-500.32295156,0.00038356,8]
[394796653,1763959842914,-151.0,0.00038356,31]
[394796654,1763959842923,-500.0,0.00038356,7]
[394796655,1763959842932,-151.0,0.00038356,31]
[394796656,1763959842942,-500.0,0.00038356,8]
[394796657,1763959842952,-500.0,0.00038356,8]
[394796658,1763959842962,-500.0,0.00038356,8]
[394796659,1763959842971,-500.0,0.00038356,8]
[394796660,1763959842981,-501.8762569,0.00038356,8]
[394796661,1763959842990,-500.0,0.00038356,8]
[394796662,1763959842999,-369.93461801,0.00038356,8]
[394796663,1763959843009,-510.96685744,0.00038356,8]
[394796664,1763959843018,-500.0,0.00038356,8]
[394796665,1763959843028,-500.0,0.00038356,8]
[394796666,1763959843038,-500.0,0.00038356,8]
[394796667,1763959843047,-504.25521357,0.00038356,8]
[394796668,1763959843057,-504.81785043,0.00038356,8]
[394796671,1763959843297,-210.9936635,0.00038356,8]
[394796672,1763959843359,-289.0063365,0.00038356,8]
[394796673,1763959843369,-522.51525579,0.00038356,8]
[394796674,1763959843379,-58.13614004,0.00038356,8]
[394796675,1763959843390,-441.86385996,0.00038356,8]
[394796676,1763959843399,-500.0,0.00038356,8]
[394796677,1763959843408,-147.07614005,0.00038356,8]
[394796678,1763959843419,-358.32414362,0.00038356,8]
[394796679,1763959843428,-513.68264165,0.00038356,8]
[394796680,1763959843437,-500.0,0.00038356,8]
[394796681,1763959843446,-507.74945867,0.00038356,8]
[394796682,1763959843455,-506.01676364,0.00038356,7]
[394796683,1763959843465,-500.0,0.00038356,8]
[394796684,1763959843474,-510.02541627,0.00038356,8]
[394796685,1763959843483,-500.0,0.00038356,8]
[394796686,1763959843493,-503.27793157,0.00038356,8]
[394796687,1763959843502,-500.0,0.00038356,8]
[394796688,1763959843512,-505.59427179,0.00038356,8]
[394796689,1763959843522,-151.0,0.00038356,31]
[394796690,1763959843531,-151.0,0.00038356,31]
[394796691,1763959843541,-151.0,0.00038356,31]
[394796692,1763959843550,-151.0,0.00038356,31]
[394796693,1763959843560,-152.963506,0.00038356,31]
[394796694,1763959843569,-500.0,0.00038356,8]
[394796695,1763959843579,-500.0,0.00038356,8]
[394796696,1763959843588,-151.0,0.00038356,31]
[394796697,1763959843598,-151.0,0.00038356,31]
[394796698,1763959843607,-154.973108,0.00038356,31]
[394796699,1763959843617,-151.0,0.00038356,31]
[394796700,1763959843627,-151.0,0.00038356,31]
[394796701,1763959843636,-500.0,0.00038356,8]
[394796702,1763959843646,-507.98922839,0.00038356,8]
[394796703,1763959843655,-151.0,0.00038356,31]
[394796704,1763959843665,-151.0,0.00038356,31]
[394796705,1763959843674,-159.929289,0.00038356,31]
[394796706,1763959843683,-500.0,0.00038356,8]
[394796707,1763959843692,-505.31474731,0.00038356,8]
[394796708,1763959843701,-500.0,0.00038356,8]
[394796709,1763959843711,-151.0,0.00038356,31]
[394796710,1763959843721,-151.0,0.00038356,31]
[394796711,1763959843730,-151.0,0.00038356,31]
[394796712,1763959843739,-151.0,0.00038356,31]
[394796713,1763959843749,-151.0,0.00038356,31]
[394796714,1763959843758,-500.0,0.00038356,8]
[394796715,1763959843769,-159.754712,0.00038356,31]
[394796716,1763959843778,-349.02438208,0.00038356,2]
[394796717,1763959843792,-150.97561792,0.00038356,2]
[394796718,1763959843802,-500.0,0.00038356,8]
[394796719,1763959843812,-500.0,0.00038356,8]
[394796720,1763959843821,-500.0,0.00038356,8]
[394796721,1763959843831,-500.0,0.00038356,8]
[394796722,1763959843842,-500.0,0.00038356,8]
[394796723,1763959843851,-500.0,0.00038356,2]
[394796724,1763959843860,-519.0533366,0.00038356,8]
[394796725,1763959843870,-575.65479981,0.00038356,8]
[394796726,1763959843879,-506.08354531,0.00038356,8]
[394796727,1763959843888,-500.0,0.00038356,8]
[394796728,1763959843898,-500.0,0.00038356,8]
[394796729,1763959843907,-151.0,0.00038356,31]
[394796730,1763959843917,-151.0,0.00038356,31]
[394796731,1763959843926,-193.717253,0.00038356,31]
[394796732,1763959843935,-500.0,0.00038356,8]
[394796733,1763959843945,-151.0,0.00038356,31]
[394796734,1763959843954,-286.26072373,0.00038356,8]
[394796735,1763959843964,-151.0,0.00038356,31]
[394796736,1763959843973,-246.66567,0.00038356,31]
[394796737,1763959843982,-152.176131,0.00038356,31]
[394796738,1763959843991,-500.0,0.00038356,8]
[394796739,1763959844000,-506.17135985,0.00038356,8]
[394796740,1763959844009,-500.0,0.00038356,8]
[394796741,1763959844018,-502.53657844,0.00038356,8]
[394796742,1763959844027,-505.46811144,0.00038356,8]
[394796743,1763959844036,-552.77330668,0.00038356,8]
[394796744,1763959844046,-505.76053257,0.00038356,8]
[394796745,1763959844055,-500.0,0.00038356,8]
[394796746,1763959844064,-427.3509391,0.00038356,8]
[394796747,1763959844074,-500.0,0.00038356,8]
[394796748,1763959844083,-151.0,0.00038356,31]
[394796749,1763959844093,-151.0,0.00038356,31]
[394796750,1763959844102,-151.0,0.00038356,31]
[394796751,1763959844111,-233.792666,0.00038356,31]
[394796752,1763959844120,-154.617636,0.00038356,31]
[394796753,1763959844130,-510.60970466,0.00038356,8]
[394796754,1763959844139,-505.59007146,0.00038356,8]
[394796755,1763959844149,-151.0,0.00038356,30]
[394796756,1763959844158,-159.836705,0.00038356,30]
[394796757,1763959844167,-504.85684829,0.00038356,8]
[394796758,1763959844176,-196.87640812,0.00038356,8]
[394796759,1763959844185,-505.79324777,0.00038356,8]
[394796760,1763959844194,-500.0,0.00038356,8]
[394796761,1763959844203,-508.77619443,0.00038356,8]
[394796762,1763959844213,-926.0082536,0.00038356,2]
[394796763,1763959844227,-249.40852,0.00038356,31]
[394796764,1763959844236,-288.316452,0.00038356,31]
[394796765,1763959844246,-500.0,0.00038356,8]
[394796766,1763959844255,-501.81410566,0.00038356,8]
[394796767,1763959844266,-500.0,0.00038356,8]
[394796768,1763959844275,-153.423098,0.00038356,31]
[394796769,1763959844284,-503.82456589,0.00038356,8]
[394796770,1763959844294,-500.0,0.00038356,8]
[394796771,1763959844304,-500.0,0.00038356,8]
[394796772,1763959844313,-500.0,0.00038356,8]
[394796773,1763959844323,-500.0,0.00038356,8]
[394796774,1763959844333,-500.0,0.00038356,8]
[394796775,1763959844343,-500.0,0.00038356,8]
[394796776,1763959844352,-154.489378,0.00038356,31]
[394796777,1763959844362,-500.0,0.00038356,10]
[394796778,1763959844371,-500.0,0.00038356,8]
[394796779,1763959844380,-500.0,0.00038356,8]
[394796780,1763959844389,-500.0,0.00038356,8]
[394796781,1763959844399,-505.98238265,0.00038356,8]
[394796782,1763959844409,-502.71512622,0.00038356,8]
[394796783,1763959844419,-500.0,0.00038356,8]
[394796784,1763959844428,-505.40801602,0.00038356,8]
[394796785,1763959844438,-500.0,0.00038356,8]
[394796786,1763959844447,-156.322272,0.00038356,31]
[394796787,1763959844456,-500.0,0.00038356,8]
[394796788,1763959844466,-500.0,0.00038356,8]
[394796789,1763959844475,-507.84527187,0.00038356,8]
[394796790,1763959844484,-505.37363347,0.00038356,8]
[394796791,1763959844494,-502.77182896,0.00038356,8]
[394796792,1763959844505,-521.13709122,0.00038356,8]
[394796793,1763959844515,-151.0,0.00038356,31]
[394796794,1763959844524,-500.0,0.00038356,8]
[394796795,1763959844533,-503.01503831,0.00038356,8]
[394796796,1763959844543,-507.06085562,0.00038356,8]
[394796797,1763959844552,-577.42056073,0.00038356,8]
[394796798,1763959844562,-500.0,0.00038356,8]
[394796799,1763959844571,-502.20570196,0.00038356,8]
[394796800,1763959844580,-529.07618706,0.00038356,8]
[394796801,1763959844589,-500.0,0.00038356,8]
[394796802,1763959844599,-500.0,0.00038356,8]
[394796803,1763959844609,-501.97784485,0.00038356,8]
[394796804,1763959844618,-532.73433483,0.00038356,8]
[394796805,1763959844627,-559.98409727,0.00038356,8]
[394796806,1763959844637,-552.72571091,0.00038356,8]
[394796807,1763959844648,-505.0455524,0.00038356,8]
[394796808,1763959844657,-413.17605449,0.00038356,8]